[Event "*** Titled Tuesday 3|2 Blitz"]
[Site "Chess.com"]
[Date "2015.05.05"]
[Round "1"]
[White "Aygehovit1992"]
[Black "Recombinant"]
[Result "1-0"]
[WhiteElo "2468"]
[BlackElo "2140"]
[TimeControl "180+2"]
[EndTime "11:07:30 PDT"]
[Termination "Aygehovit1992 won by resignation"]

1. e4 {[%clk 0:02:58.4]} 1... c5 {[%clk 0:02:59.9]} 2. Nf3 {[%clk 0:02:59.1]}
2... d6 {[%clk 0:03:01.2]} 3. d4 {[%clk 0:02:59.5]} 3... cxd4 {[%clk 0:03:02.3]}
4. Nxd4 {[%clk 0:03:01.2]} 4... Nf6 {[%clk 0:03:03.9]} 5. Nc3 {[%clk 0:03:02.8]}
5... g6 {[%clk 0:03:05.3]} 6. Be3 {[%clk 0:03:02.3]} 6... Bg7 {[%clk 0:03:06.2]}
7. f3 {[%clk 0:03:04]} 7... O-O {[%clk 0:03:06.5]} 8. Qd2 {[%clk 0:03:05.6]}
8... Nc6 {[%clk 0:03:07.4]} 9. O-O-O {[%clk 0:03:05.9]} 9... d5 {[%clk 0:03:08]}
10. exd5 {[%clk 0:03:04.8]} 10... Nxd5 {[%clk 0:03:08.5]} 11. Nxc6 {[%clk
0:03:05.9]} 11... bxc6 {[%clk 0:03:10.2]} 12. Bd4 {[%clk 0:03:07.5]} 12... Nxc3
{[%clk 0:03:10.4]} 13. Qxc3 {[%clk 0:03:07.2]} 13... Bh6+ {[%clk 0:03:11.5]} 14.
Be3 {[%clk 0:03:05.9]} 14... Bxe3+ {[%clk 0:03:12.3]} 15. Qxe3 {[%clk 0:03:07]}
15... Qb6 {[%clk 0:03:13.9]} 16. Qxb6 {[%clk 0:03:03.8]} 16... axb6 {[%clk
0:03:14.6]} 17. a3 {[%clk 0:03:05.5]} 17... Be6 {[%clk 0:03:07.3]} 18. Bd3
{[%clk 0:03:05.4]} 18... c5 {[%clk 0:03:01.3]} 19. Be4 {[%clk 0:03:05.8]} 19...
Rad8 {[%clk 0:03:02.1]} 20. Rxd8 {[%clk 0:03:05.4]} 20... Rxd8 {[%clk
0:03:02.5]} 21. Rd1 {[%clk 0:03:06.7]} 21... Rxd1+ {[%clk 0:03:03]} 22. Kxd1
{[%clk 0:03:08]} 22... f5 {[%clk 0:03:04.6]} 23. Bb7 {[%clk 0:03:08.8]} 23...
Kf7 {[%clk 0:03:05.1]} 24. Kd2 {[%clk 0:03:10.3]} 24... Bd7 {[%clk 0:03:06.2]}
25. b4 {[%clk 0:03:10.8]} 25... cxb4 {[%clk 0:03:05.6]} 26. axb4 {[%clk
0:03:12.1]} 26... e5 {[%clk 0:03:06.6]} 27. c4 {[%clk 0:03:13.2]} 27... Ke6
{[%clk 0:03:04.3]} 28. h4 {[%clk 0:03:14.2]} 28... h6 {[%clk 0:03:05]} 29. Kc3
{[%clk 0:03:14.2]} 29... g5 {[%clk 0:03:06.2]} 30. hxg5 {[%clk 0:03:15.4]} 30...
hxg5 {[%clk 0:03:08.1]} 31. c5 {[%clk 0:03:11.6]} 31... bxc5 {[%clk 0:03:04.7]}
32. bxc5 {[%clk 0:03:12.7]} 32... Bb5 {[%clk 0:03:04.6]} 33. Kb4 {[%clk
0:03:13.8]} 33... Bf1 {[%clk 0:03:04.6]} 34. g3 {[%clk 0:03:15]} 34... Bg2
{[%clk 0:02:57.6]} 35. Kb5 {[%clk 0:03:14.8]} 35... g4 {[%clk 0:02:56.8]} 36.
Bc8+ {[%clk 0:03:14.4]} 36... Kf6 {[%clk 0:02:04.8]} 37. fxg4 {[%clk 0:03:15.3]}
37... e4 {[%clk 0:02:05.7]} 38. Bxf5 {[%clk 0:03:06.3]} 38... Bf1+ {[%clk
0:02:06.2]} 39. Kb4 {[%clk 0:03:04.7]} 39... e3 {[%clk 0:02:07.5]} 40. Kc3
{[%clk 0:03:05.9]} 40... Bb5 {[%clk 0:02:05.1]} 41. Bc8 {[%clk 0:02:31.7]} 41...
Kg5 {[%clk 0:02:02.7]} 42. Kc2 {[%clk 0:02:19.7]} 42... Kg6 {[%clk 0:01:51.6]}
43. Kd1 {[%clk 0:02:18.7]} 43... Kg5 {[%clk 0:01:50.3]} 44. Ke1 {[%clk
0:02:19.8]} 44... Kf6 {[%clk 0:01:45.9]} 45. Bb7 {[%clk 0:02:18.5]} 45... Kg5
{[%clk 0:01:46]} 46. Bf3 {[%clk 0:02:19.3]} 46... Kf6 {[%clk 0:01:04.5]} 47. c6
{[%clk 0:02:10.8]} 47... Ke7 {[%clk 0:01:05.2]} 48. g5 {[%clk 0:02:11.9]} 48...
Kd6 {[%clk 0:01:04.8]} 49. g6 {[%clk 0:02:12.8]} 49... Bd3 {[%clk 0:01:01.5]}
50. g7 {[%clk 0:02:12.1]} 50... Bc4 {[%clk 0:01:00]} 51. Be4 {[%clk 0:02:09.2]}
51... Kc7 {[%clk 0:00:44.6]} 52. Bh7 {[%clk 0:02:08.2]} 52... Kxc6 {[%clk
0:00:45.5]} 53. g8=Q {[%clk 0:02:09.4]} 53... Bxg8 {[%clk 0:00:46]} 54. Bxg8
{[%clk 0:02:10.6]} 54... Kc5 {[%clk 0:00:47]} 55. Ke2 {[%clk 0:02:12]} 55... Kd4
{[%clk 0:00:47.8]} 56. Bh7 {[%clk 0:02:13.3]} 1-0

[Event "*** Titled Tuesday 3|2 Blitz"]
[Site "Chess.com"]
[Date "2015.05.05"]
[Round "1"]
[White "Canonkasparov"]
[Black "jefferyx"]
[Result "1-0"]
[WhiteElo "2088"]
[BlackElo "2312"]
[TimeControl "180+2"]
[EndTime "11:07:45 PDT"]
[Termination "Canonkasparov won by resignation"]

1. d4 {[%clk 0:02:53.4]} 1... Nf6 {[%clk 0:03:00.6]} 2. Nf3 {[%clk 0:02:50.8]}
2... e6 {[%clk 0:03:00.9]} 3. c3 {[%clk 0:02:51]} 3... c5 {[%clk 0:03:01.9]} 4.
Bf4 {[%clk 0:02:50.7]} 4... b6 {[%clk 0:03:02.3]} 5. e3 {[%clk 0:02:51.2]} 5...
Bb7 {[%clk 0:03:03.6]} 6. Nbd2 {[%clk 0:02:52.1]} 6... Be7 {[%clk 0:03:05.1]} 7.
Be2 {[%clk 0:02:52.2]} 7... O-O {[%clk 0:03:00.9]} 8. h3 {[%clk 0:02:52.8]} 8...
d6 {[%clk 0:03:00.7]} 9. O-O {[%clk 0:02:53.2]} 9... Nbd7 {[%clk 0:03:02.2]} 10.
Bh2 {[%clk 0:02:51.7]} 10... a6 {[%clk 0:03:01.4]} 11. a4 {[%clk 0:02:52.1]}
11... Qc7 {[%clk 0:02:58.6]} 12. Qb1 {[%clk 0:02:52.4]} 12... Rfe8 {[%clk
0:02:56.7]} 13. Rc1 {[%clk 0:02:52.1]} 13... Rac8 {[%clk 0:02:57.5]} 14. b4
{[%clk 0:02:52.1]} 14... Qb8 {[%clk 0:02:57.9]} 15. Qb2 {[%clk 0:02:50.2]} 15...
Qa8 {[%clk 0:02:58.9]} 16. Nc4 {[%clk 0:02:49.9]} 16... Ne4 {[%clk 0:02:56.5]}
17. Bf1 {[%clk 0:02:45.9]} 17... Bd5 {[%clk 0:02:40.5]} 18. Ncd2 {[%clk
0:02:40.7]} 18... Ndf6 {[%clk 0:02:15]} 19. bxc5 {[%clk 0:02:32.2]} 19... bxc5
{[%clk 0:02:14.5]} 20. a5 {[%clk 0:02:30.2]} 20... Rb8 {[%clk 0:02:06.3]} 21.
Qa3 {[%clk 0:02:29.7]} 21... Rec8 {[%clk 0:02:03.2]} 22. c4 {[%clk 0:02:25]}
22... Bc6 {[%clk 0:02:02.9]} 23. dxc5 {[%clk 0:02:22.7]} 23... Nxc5 {[%clk
0:02:03.5]} 24. Nd4 {[%clk 0:02:16.3]} 24... Bd7 {[%clk 0:02:03.7]} 25. g4
{[%clk 0:02:00.4]} 25... Qb7 {[%clk 0:01:53.4]} 26. Rab1 {[%clk 0:01:58.6]}
26... Qc7 {[%clk 0:01:54.7]} 27. Bg2 {[%clk 0:01:58.7]} 27... g6 {[%clk
0:01:45.5]} 28. Bg3 {[%clk 0:01:57.6]} 28... Ne8 {[%clk 0:01:38]} 29. N2b3
{[%clk 0:01:55.8]} 29... Nd3 {[%clk 0:01:34.4]} 30. Rc2 {[%clk 0:01:52.2]} 30...
Nb4 {[%clk 0:01:33.2]} 31. Rc3 {[%clk 0:01:51.1]} 31... Qa7 {[%clk 0:01:29.6]}
32. Rbc1 {[%clk 0:01:49.4]} 32... e5 {[%clk 0:01:03.6]} 33. Ne2 {[%clk
0:01:42.2]} 33... Nc6 {[%clk 0:01:03.9]} 34. c5 {[%clk 0:01:35]} 34... dxc5
{[%clk 0:00:53.8]} 35. Nxc5 {[%clk 0:01:35]} 35... Nd8 {[%clk 0:00:54.5]} 36.
Bxe5 {[%clk 0:01:30.6]} 36... Rb5 {[%clk 0:00:53.5]} 37. Bd4 {[%clk 0:01:28]}
37... Qc7 {[%clk 0:00:54.2]} 38. Nxa6 {[%clk 0:01:19.4]} 38... Bxa3 {[%clk
0:00:46.5]} 39. Nxc7 {[%clk 0:01:19.6]} 39... Rxa5 {[%clk 0:00:33.8]} 40. Nxe8
{[%clk 0:01:17.2]} 40... Bxc1 {[%clk 0:00:34.7]} 41. Nf6+ {[%clk 0:01:15.4]} 1-0

[Event "*** Titled Tuesday 3|2 Blitz"]
[Site "Chess.com"]
[Date "2015.05.05"]
[Round "1"]
[White "ChessTrener"]
[Black "pedromartinez91"]
[Result "1-0"]
[WhiteElo "2485"]
[BlackElo "2144"]
[TimeControl "180+2"]
[EndTime "11:08:00 PDT"]
[Termination "ChessTrener won by resignation"]

1. e4 {[%clk 0:03:00]} 1... c5 {[%clk 0:03:01]} 2. Ne2 {[%clk 0:02:52.9]} 2...
Nc6 {[%clk 0:03:01.4]} 3. Nbc3 {[%clk 0:02:53]} 3... Nd4 {[%clk 0:02:59.3]} 4.
d3 {[%clk 0:02:51.8]} 4... d6 {[%clk 0:02:58.5]} 5. Nxd4 {[%clk 0:02:52.8]} 5...
cxd4 {[%clk 0:02:59.5]} 6. Ne2 {[%clk 0:02:54.7]} 6... Qb6 {[%clk 0:02:57]} 7.
g3 {[%clk 0:02:54.7]} 7... h5 {[%clk 0:02:57]} 8. h3 {[%clk 0:02:54.5]} 8... h4
{[%clk 0:02:54.4]} 9. g4 {[%clk 0:02:55.2]} 9... e5 {[%clk 0:02:55.2]} 10. Bg2
{[%clk 0:02:56.4]} 10... Be7 {[%clk 0:02:52.4]} 11. f4 {[%clk 0:02:56.8]} 11...
f6 {[%clk 0:02:38.4]} 12. O-O {[%clk 0:02:56.2]} 12... Be6 {[%clk 0:02:38.9]}
13. Kh2 {[%clk 0:02:55.7]} 13... O-O-O {[%clk 0:02:24.5]} 14. c4 {[%clk
0:02:46.3]} 14... Nh6 {[%clk 0:02:16.8]} 15. f5 {[%clk 0:02:45.4]} 15... Bd7
{[%clk 0:02:17.6]} 16. a3 {[%clk 0:02:41.7]} 16... Rdg8 {[%clk 0:02:17.2]} 17.
b4 {[%clk 0:02:35.9]} 17... g6 {[%clk 0:02:18.1]} 18. a4 {[%clk 0:02:33.3]}
18... gxf5 {[%clk 0:02:18.2]} 19. exf5 {[%clk 0:02:34.2]} 19... Bc6 {[%clk
0:02:16.3]} 20. a5 {[%clk 0:02:29.9]} 20... Qc7 {[%clk 0:02:16.9]} 21. Bxc6
{[%clk 0:02:30.5]} 21... Qxc6 {[%clk 0:02:17.3]} 22. b5 {[%clk 0:02:31.8]} 22...
Qe8 {[%clk 0:02:16.3]} 23. Ng1 {[%clk 0:02:30.5]} 23... d5 {[%clk 0:02:13]} 24.
Bxh6 {[%clk 0:02:27.7]} 24... Rxh6 {[%clk 0:02:11]} 25. a6 {[%clk 0:02:23.4]}
25... b6 {[%clk 0:01:48.3]} 26. Qf3 {[%clk 0:02:21.8]} 26... e4 {[%clk
0:01:37.1]} 27. Qf4 {[%clk 0:02:11.5]} 27... Qf8 {[%clk 0:01:38]} 28. Kh1 {[%clk
0:01:56.8]} 28... Bd6 {[%clk 0:01:38.7]} 29. Qd2 {[%clk 0:01:57.3]} 29... dxc4
{[%clk 0:01:34.7]} 30. dxc4 {[%clk 0:01:54.1]} 30... Be5 {[%clk 0:01:29.3]} 31.
c5 {[%clk 0:01:48.6]} 31... bxc5 {[%clk 0:01:20.9]} 32. b6 {[%clk 0:01:49.3]}
32... Kb8 {[%clk 0:01:18.5]} 33. Qb2 {[%clk 0:01:46.7]} 33... Ka8 {[%clk
0:01:16.3]} 34. Rfb1 {[%clk 0:01:43.8]} 34... axb6 {[%clk 0:01:13.2]} 35. Qxb6
{[%clk 0:01:43.8]} 35... Qc8 {[%clk 0:00:27.7]} 36. Qb7+ {[%clk 0:01:42.9]}
36... Qxb7 {[%clk 0:00:28.7]} 37. axb7+ {[%clk 0:01:44.8]} 37... Kb8 {[%clk
0:00:30]} 38. Ra8+ {[%clk 0:01:46.3]} 38... Kc7 {[%clk 0:00:31.3]} 39. Rxg8
{[%clk 0:01:48.2]} 39... Kc6 {[%clk 0:00:32.5]} 40. Re8 {[%clk 0:01:46.4]} 40...
Bf4 {[%clk 0:00:19.6]} 41. Rxe4 {[%clk 0:01:44.8]} 41... Bc7 {[%clk 0:00:20.5]}
42. Re7 {[%clk 0:01:42.8]} 42... Bf4 {[%clk 0:00:20.9]} 43. Ne2 {[%clk
0:01:36.6]} 43... Bb8 {[%clk 0:00:21.8]} 44. Re8 {[%clk 0:01:35.6]} 44... Ba7
{[%clk 0:00:21.4]} 45. Ra8 {[%clk 0:01:36.1]} 45... Rh7 {[%clk 0:00:22.7]} 46.
Rxa7 {[%clk 0:01:36.6]} 46... Rxb7 {[%clk 0:00:24.3]} 47. Raxb7 {[%clk
0:01:37.3]} 47... Kd5 {[%clk 0:00:26]} 48. Nxd4 {[%clk 0:01:37.5]} 48... Kxd4
{[%clk 0:00:26.9]} 49. Rc1 {[%clk 0:01:38.5]} 1-0

[Event "*** Titled Tuesday 3|2 Blitz"]
[Site "Chess.com"]
[Date "2015.05.05"]
[Round "1"]
[White "jlandaw"]
[Black "ProphetoftheLord"]
[Result "1-0"]
[WhiteElo "2364"]
[BlackElo "2007"]
[TimeControl "180+2"]
[EndTime "11:08:10 PDT"]
[Termination "jlandaw won by resignation"]

1. e4 {[%clk 0:03:01.9]} 1... c5 {[%clk 0:03:00.4]} 2. Nc3 {[%clk 0:03:02.6]}
2... Nc6 {[%clk 0:02:59.4]} 3. g3 {[%clk 0:03:03.7]} 3... g6 {[%clk 0:03:00.8]}
4. Bg2 {[%clk 0:03:04.8]} 4... Bg7 {[%clk 0:03:02.5]} 5. d3 {[%clk 0:03:06.3]}
5... d6 {[%clk 0:03:04.1]} 6. f4 {[%clk 0:03:07.1]} 6... e6 {[%clk 0:03:05.5]}
7. Nf3 {[%clk 0:03:08.3]} 7... Nge7 {[%clk 0:03:06.3]} 8. O-O {[%clk 0:03:09.6]}
8... Qd7 {[%clk 0:03:06.5]} 9. Be3 {[%clk 0:02:58.4]} 9... Nd4 {[%clk
0:03:07.2]} 10. e5 {[%clk 0:02:56]} 10... Nxf3+ {[%clk 0:03:02.5]} 11. Qxf3
{[%clk 0:02:56.5]} 11... O-O {[%clk 0:02:55.3]} 12. exd6 {[%clk 0:02:53.2]}
12... Qxd6 {[%clk 0:02:55.5]} 13. Ne4 {[%clk 0:02:54.4]} 13... Qd8 {[%clk
0:02:41]} 14. Rab1 {[%clk 0:02:20.8]} 14... Rb8 {[%clk 0:02:37.4]} 15. Bxc5
{[%clk 0:02:12.1]} 15... Bd4+ {[%clk 0:02:34.4]} 16. Bxd4 {[%clk 0:01:54.4]}
16... Qxd4+ {[%clk 0:02:34.5]} 17. Kh1 {[%clk 0:01:53.1]} 17... b6 {[%clk
0:02:29.3]} 18. c3 {[%clk 0:01:53.8]} 18... Qd8 {[%clk 0:02:18.3]} 19. d4 {[%clk
0:01:25.6]} 19... Bb7 {[%clk 0:02:16.3]} 20. Qe2 {[%clk 0:01:26.8]} 20... Nf5
{[%clk 0:02:10.8]} 21. Rfe1 {[%clk 0:01:26]} 21... Bxe4 {[%clk 0:02:01.4]} 22.
Bxe4 {[%clk 0:01:26]} 22... Qd6 {[%clk 0:01:56.2]} 23. Qb5 {[%clk 0:01:18.3]}
23... a5 {[%clk 0:01:50.7]} 24. Rbd1 {[%clk 0:01:13.2]} 24... Ne7 {[%clk
0:01:48.1]} 25. Qe5 {[%clk 0:01:06.7]} 25... Qd7 {[%clk 0:01:45.7]} 26. d5
{[%clk 0:01:02.2]} 26... exd5 {[%clk 0:01:44]} 27. Bxd5 {[%clk 0:00:56.5]} 27...
Nxd5 {[%clk 0:01:43.6]} 28. Qxd5 {[%clk 0:00:55.4]} 28... Qg4 {[%clk 0:01:38.2]}
29. Qg2 {[%clk 0:00:50.7]} 29... Rbd8 {[%clk 0:01:37]} 30. Rxd8 {[%clk
0:00:50.2]} 30... Rxd8 {[%clk 0:01:36.6]} 31. h3 {[%clk 0:00:41.7]} 31... Qf5
{[%clk 0:01:33.9]} 32. Kh2 {[%clk 0:00:36.9]} 32... Rd3 {[%clk 0:01:30.8]} 33.
Re8+ {[%clk 0:00:34.9]} 33... Kg7 {[%clk 0:01:30.3]} 34. Qe2 {[%clk 0:00:36.4]}
34... Qd5 {[%clk 0:01:25.6]} 35. Qf2 {[%clk 0:00:26.9]} 35... Rd2 {[%clk
0:01:24.1]} 36. Re2 {[%clk 0:00:27.7]} 36... Rxe2 {[%clk 0:01:21.4]} 37. Qxe2
{[%clk 0:00:29.6]} 37... Qxa2 {[%clk 0:01:20.8]} 38. Qe5+ {[%clk 0:00:30.6]}
38... Kg8 {[%clk 0:01:21.2]} 39. Qb8+ {[%clk 0:00:31.7]} 39... Kg7 {[%clk
0:01:20]} 40. Qxb6 {[%clk 0:00:32.8]} 40... Qd5 {[%clk 0:01:19.2]} 41. Qd4+
{[%clk 0:00:23.9]} 41... Qxd4 {[%clk 0:01:19.4]} 42. cxd4 {[%clk 0:00:25.8]}
42... Kf6 {[%clk 0:01:18.7]} 43. Kg2 {[%clk 0:00:27.3]} 43... Ke6 {[%clk
0:01:20.3]} 44. Kf3 {[%clk 0:00:28.8]} 44... Kd5 {[%clk 0:01:21.7]} 45. Ke3
{[%clk 0:00:30.3]} 45... f5 {[%clk 0:01:22.2]} 46. Kd3 {[%clk 0:00:31.6]} 46...
h5 {[%clk 0:01:21.6]} 47. b3 {[%clk 0:00:31.1]} 47... Kc6 {[%clk 0:01:18.6]} 48.
Kc4 {[%clk 0:00:31.7]} 48... Kb6 {[%clk 0:01:19.4]} 49. d5 {[%clk 0:00:31.8]}
49... Ka6 {[%clk 0:01:20.4]} 50. Kc5 {[%clk 0:00:32.5]} 50... Kb7 {[%clk
0:01:20.5]} 51. Kd6 {[%clk 0:00:33.5]} 51... Kc8 {[%clk 0:01:20.8]} 52. Ke7
{[%clk 0:00:34.7]} 52... Kc7 {[%clk 0:01:20.7]} 53. d6+ {[%clk 0:00:36]} 53...
Kc6 {[%clk 0:01:21.4]} 54. d7 {[%clk 0:00:37.6]} 54... a4 {[%clk 0:01:21.7]} 55.
bxa4 {[%clk 0:00:38.5]} 1-0

[Event "*** Titled Tuesday 3|2 Blitz"]
[Site "Chess.com"]
[Date "2015.05.05"]
[Round "1"]
[White "amaidel"]
[Black "Hikaru"]
[Result "0-1"]
[WhiteElo "2288"]
[BlackElo "2826"]
[TimeControl "180+2"]
[EndTime "11:08:15 PDT"]
[Termination "Hikaru won by resignation"]

1. e4 {[%clk 0:03:00.4]} 1... d6 {[%clk 0:02:57.6]} 2. d4 {[%clk 0:03:00.9]}
2... g6 {[%clk 0:02:59.5]} 3. Nc3 {[%clk 0:03:01.9]} 3... Bg7 {[%clk 0:03:00.4]}
4. f4 {[%clk 0:03:03.1]} 4... a6 {[%clk 0:03:02]} 5. Nf3 {[%clk 0:03:04.3]} 5...
Bg4 {[%clk 0:03:01.1]} 6. Be3 {[%clk 0:03:02.4]} 6... Nd7 {[%clk 0:03:01.3]} 7.
h3 {[%clk 0:03:03]} 7... Bxf3 {[%clk 0:03:02.5]} 8. Qxf3 {[%clk 0:03:04]} 8...
c5 {[%clk 0:03:03.8]} 9. O-O-O {[%clk 0:03:03]} 9... cxd4 {[%clk 0:03:04.2]} 10.
Bxd4 {[%clk 0:03:03.5]} 10... Bxd4 {[%clk 0:03:05.9]} 11. Rxd4 {[%clk 0:03:04]}
11... Rc8 {[%clk 0:03:07.8]} 12. e5 {[%clk 0:02:48.7]} 12... Qb6 {[%clk
0:02:55.3]} 13. Rc4 {[%clk 0:02:43.4]} 13... Rxc4 {[%clk 0:02:50.6]} 14. Bxc4
{[%clk 0:02:43.6]} 14... dxe5 {[%clk 0:02:52.5]} 15. Rd1 {[%clk 0:02:43.4]}
15... Ngf6 {[%clk 0:02:52.1]} 16. g4 {[%clk 0:02:40.4]} 16... Qc6 {[%clk
0:01:58.6]} 17. Qd3 {[%clk 0:02:32.6]} 17... O-O {[%clk 0:01:44.9]} 18. g5
{[%clk 0:02:32.1]} 18... Nh5 {[%clk 0:01:46.1]} 19. Nd5 {[%clk 0:02:15.4]} 19...
Qc5 {[%clk 0:01:26.8]} 20. f5 {[%clk 0:02:02.7]} 20... Nb6 {[%clk 0:01:22.2]}
21. Bb3 {[%clk 0:01:26.4]} 21... Nxd5 {[%clk 0:01:21.8]} 22. Bxd5 {[%clk
0:01:26.2]} 22... Nf4 {[%clk 0:01:21.1]} 23. Qe4 {[%clk 0:01:26.9]} 23... Nxd5
{[%clk 0:01:21]} 24. Qxd5 {[%clk 0:01:24.2]} 24... Qe3+ {[%clk 0:01:19.1]} 25.
Kb1 {[%clk 0:01:24.4]} 25... gxf5 {[%clk 0:01:17.7]} 26. Qxb7 {[%clk 0:01:23.8]}
26... Qxg5 {[%clk 0:01:18]} 27. Qxa6 {[%clk 0:01:24.3]} 27... f4 {[%clk
0:01:18]} 28. Qa7 {[%clk 0:01:23.8]} 28... Qf5 {[%clk 0:01:18.1]} 29. Rg1+
{[%clk 0:01:22]} 29... Kh8 {[%clk 0:01:18.7]} 30. Qxe7 {[%clk 0:01:22.8]} 30...
Rc8 {[%clk 0:01:19]} 31. Ka1 {[%clk 0:01:21.5]} 31... f3 {[%clk 0:01:09]} 32. c3
{[%clk 0:01:08.4]} 32... f2 {[%clk 0:01:01.5]} 33. Rf1 {[%clk 0:01:09.3]} 33...
e4 {[%clk 0:01:02.1]} 34. Qd6 {[%clk 0:01:07.7]} 34... f6 {[%clk 0:00:53.1]} 35.
Qd4 {[%clk 0:01:08.4]} 35... Rg8 {[%clk 0:00:41.5]} 36. a3 {[%clk 0:01:08.5]}
36... Rg2 {[%clk 0:00:41.2]} 37. a4 {[%clk 0:01:05.2]} 37... Kg7 {[%clk
0:00:41.4]} 38. b4 {[%clk 0:01:04.9]} 38... Qf3 {[%clk 0:00:40.3]} 39. Qd7+
{[%clk 0:00:59.6]} 39... Kh6 {[%clk 0:00:41.3]} 40. Qc6 {[%clk 0:00:57.5]} 40...
Rg1 {[%clk 0:00:39.2]} 41. Qc4 {[%clk 0:00:45.8]} 41... Rxf1+ {[%clk 0:00:38.4]}
42. Qxf1 {[%clk 0:00:47]} 42... Qxc3+ {[%clk 0:00:39.7]} 43. Ka2 {[%clk
0:00:48.4]} 43... Qe1 {[%clk 0:00:37.3]} 0-1

[Event "*** Titled Tuesday 3|2 Blitz"]
[Site "Chess.com"]
[Date "2015.05.05"]
[Round "1"]
[White "AndrewMcStone"]
[Black "lukas_111111"]
[Result "1/2-1/2"]
[WhiteElo "1995"]
[BlackElo "2333"]
[TimeControl "180+2"]
[EndTime "11:08:37 PDT"]
[Termination "Game drawn by repetition"]

1. d4 {[%clk 0:02:59.3]} 1... Nf6 {[%clk 0:03:00]} 2. c4 {[%clk 0:02:59.2]} 2...
g6 {[%clk 0:03:00.3]} 3. Nc3 {[%clk 0:02:59.6]} 3... d5 {[%clk 0:03:01.2]} 4.
cxd5 {[%clk 0:03:00.4]} 4... Nxd5 {[%clk 0:03:01.5]} 5. Bd2 {[%clk 0:03:02]}
5... Bg7 {[%clk 0:03:01.2]} 6. e4 {[%clk 0:03:02.7]} 6... Nxc3 {[%clk
0:03:02.3]} 7. Bxc3 {[%clk 0:03:04.2]} 7... O-O {[%clk 0:03:02.8]} 8. Bc4 {[%clk
0:03:00.4]} 8... c5 {[%clk 0:02:59.9]} 9. d5 {[%clk 0:03:01.1]} 9... Bxc3+
{[%clk 0:02:58.1]} 10. bxc3 {[%clk 0:03:03]} 10... Qd6 {[%clk 0:02:58.4]} 11.
Ne2 {[%clk 0:02:13.5]} 11... f5 {[%clk 0:02:56.6]} 12. exf5 {[%clk 0:01:51]}
12... Bxf5 {[%clk 0:02:54.1]} 13. O-O {[%clk 0:01:51.4]} 13... Nd7 {[%clk
0:02:53.8]} 14. Ng3 {[%clk 0:01:40.2]} 14... Nb6 {[%clk 0:02:50.7]} 15. Qe2
{[%clk 0:01:33.8]} 15... Rad8 {[%clk 0:02:17.9]} 16. Rad1 {[%clk 0:01:31.2]}
16... Nxc4 {[%clk 0:02:11.6]} 17. Qxc4 {[%clk 0:01:31.5]} 17... a6 {[%clk
0:02:12.5]} 18. a4 {[%clk 0:01:28.5]} 18... Rb8 {[%clk 0:02:03.1]} 19. Rfe1
{[%clk 0:01:21.6]} 19... b5 {[%clk 0:02:03.5]} 20. axb5 {[%clk 0:01:22.6]} 20...
axb5 {[%clk 0:02:04.4]} 21. Qh4 {[%clk 0:01:20.9]} 21... Rb7 {[%clk 0:01:58.5]}
22. Nxf5 {[%clk 0:01:03.2]} 22... Rxf5 {[%clk 0:01:58.5]} 23. Re6 {[%clk
0:01:03.3]} 23... Qd7 {[%clk 0:01:44.7]} 24. Qe4 {[%clk 0:00:42.9]} 24... Ra7
{[%clk 0:00:48.4]} 25. g4 {[%clk 0:00:34.8]} 25... Rf7 {[%clk 0:00:45.9]} 26. d6
{[%clk 0:00:31.9]} 26... exd6 {[%clk 0:00:43.3]} 27. Rdxd6 {[%clk 0:00:32.7]}
27... Ra1+ {[%clk 0:00:34]} 28. Kg2 {[%clk 0:00:32.8]} 28... Qb7 {[%clk
0:00:35.5]} 29. Rc6 {[%clk 0:00:18.6]} 29... Ra8 {[%clk 0:00:18.7]} 30. Re8+
{[%clk 0:00:19.5]} 30... Rxe8 {[%clk 0:00:19.3]} 31. Qxe8+ {[%clk 0:00:21.4]}
31... Kg7 {[%clk 0:00:19.6]} 32. Qe5+ {[%clk 0:00:21.8]} 32... Kg8 {[%clk
0:00:18.6]} 33. Qe8+ {[%clk 0:00:17.3]} 33... Rf8 {[%clk 0:00:18.6]} 34. Qe6+
{[%clk 0:00:18.2]} 34... Kh8 {[%clk 0:00:18.1]} 35. Qe5+ {[%clk 0:00:13.8]}
35... Kg8 {[%clk 0:00:17.6]} 36. Qe6+ {[%clk 0:00:14.9]} 36... Kg7 {[%clk
0:00:18.4]} 37. Qe5+ {[%clk 0:00:15.6]} 37... Kg8 {[%clk 0:00:17.6]} 38. Qe6+
{[%clk 0:00:16.6]} 1/2-1/2

[Event "*** Titled Tuesday 3|2 Blitz"]
[Site "Chess.com"]
[Date "2015.05.05"]
[Round "1"]
[White "Tomsel"]
[Black "geeeeri"]
[Result "1-0"]
[WhiteElo "2357"]
[BlackElo "1986"]
[TimeControl "180+2"]
[EndTime "11:08:44 PDT"]
[Termination "Tomsel won by resignation"]

1. d4 {[%clk 0:01:24.8]} 1... Nf6 {[%clk 0:02:55.9]} 2. Bf4 {[%clk 0:01:24.5]}
2... g6 {[%clk 0:02:53.9]} 3. Nc3 {[%clk 0:01:23.9]} 3... d6 {[%clk 0:02:55.1]}
4. e4 {[%clk 0:01:23]} 4... Bg7 {[%clk 0:02:55.9]} 5. Qd2 {[%clk 0:01:21.9]}
5... Nbd7 {[%clk 0:02:56.6]} 6. Nf3 {[%clk 0:01:18.1]} 6... h6 {[%clk
0:02:53.3]} 7. e5 {[%clk 0:01:12]} 7... Nh5 {[%clk 0:02:51.1]} 8. e6 {[%clk
0:01:11.4]} 8... fxe6 {[%clk 0:02:49.1]} 9. Bd3 {[%clk 0:01:12.2]} 9... Nf8
{[%clk 0:02:47]} 10. O-O-O {[%clk 0:01:06.3]} 10... Bd7 {[%clk 0:02:27.7]} 11.
Be3 {[%clk 0:00:49.3]} 11... Bc6 {[%clk 0:02:22.8]} 12. Nh4 {[%clk 0:00:50.2]}
12... g5 {[%clk 0:02:12.1]} 13. Ng6 {[%clk 0:00:49.9]} 13... Rg8 {[%clk
0:01:53.7]} 14. Nxf8 {[%clk 0:00:36.3]} 14... Kxf8 {[%clk 0:01:54.1]} 15. f4
{[%clk 0:00:36.9]} 15... g4 {[%clk 0:01:52.7]} 16. f5 {[%clk 0:00:25.5]} 16...
e5 {[%clk 0:01:47.5]} 17. d5 {[%clk 0:00:21.9]} 17... Be8 {[%clk 0:01:38.8]} 18.
Bxh6 {[%clk 0:00:22.7]} 18... Nf4 {[%clk 0:01:34.8]} 19. Bxg7+ {[%clk
0:00:16.9]} 19... Rxg7 {[%clk 0:01:35.9]} 20. g3 {[%clk 0:00:18.8]} 20... Nxd3+
{[%clk 0:01:32.1]} 21. Qxd3 {[%clk 0:00:20.7]} 21... c6 {[%clk 0:01:33.3]} 22.
Rdf1 {[%clk 0:00:20.8]} 22... Rf7 {[%clk 0:01:23.9]} 23. h3 {[%clk 0:00:19.5]}
23... cxd5 {[%clk 0:01:22.5]} 24. hxg4 {[%clk 0:00:20.7]} 24... Kg8 {[%clk
0:00:49.8]} 25. Nxd5 {[%clk 0:00:14.9]} 25... Bc6 {[%clk 0:00:50.1]} 26. g5
{[%clk 0:00:11.2]} 26... e6 {[%clk 0:00:50.5]} 27. fxe6 {[%clk 0:00:10.1]} 27...
Qxg5+ {[%clk 0:00:51]} 28. Kb1 {[%clk 0:00:09.5]} 28... Rxf1+ {[%clk 0:00:50.8]}
29. Qxf1 {[%clk 0:00:08.4]} 29... Rf8 {[%clk 0:00:48.4]} 30. Qh3 {[%clk
0:00:09.4]} 30... Rf1+ {[%clk 0:00:22.8]} 31. Qxf1 {[%clk 0:00:09.3]} 31... Qg7
{[%clk 0:00:22.6]} 32. Nf6+ {[%clk 0:00:08.1]} 32... Kf8 {[%clk 0:00:22.6]} 33.
Nh5+ {[%clk 0:00:06.7]} 33... Ke7 {[%clk 0:00:24.2]} 34. Nxg7 {[%clk 0:00:07.6]}
34... d5 {[%clk 0:00:25.8]} 35. Qf7+ {[%clk 0:00:08.7]} 35... Kd6 {[%clk
0:00:27.4]} 36. Qf8+ {[%clk 0:00:09.9]} 36... Kc7 {[%clk 0:00:27.8]} 37. e7
{[%clk 0:00:11.1]} 37... Kb6 {[%clk 0:00:29.4]} 38. e8=Q {[%clk 0:00:12.3]}
38... Ka6 {[%clk 0:00:31.1]} 39. Qxe5 {[%clk 0:00:12.7]} 39... Bb5 {[%clk
0:00:32]} 40. Qa3+ {[%clk 0:00:12.7]} 40... Kb6 {[%clk 0:00:32.7]} 41. Rh6+
{[%clk 0:00:13.8]} 41... Bc6 {[%clk 0:00:32.3]} 42. Qd4+ {[%clk 0:00:14.1]}
42... Kc7 {[%clk 0:00:32.9]} 43. Qd6+ {[%clk 0:00:14.7]} 1-0